[Event "*** Titled Tuesday Blitz"]
[Site "Chess.com"]
[Date "2021.03.02"]
[Round "8"]
[White "Abund"]
[Black "Bodnar_Mykola"]
[Result "0-1"]
[WhiteElo "2648"]
[BlackElo "2507"]
[TimeControl "180+1"]
[EndTime "11:30:24 PST"]
[Termination "Bodnar_Mykola won by resignation"]

1. e4 {[%clk 0:03:00.9]} 1... e5 {[%clk 0:03:00]} 2. Nf3 {[%clk 0:02:57.9]} 2...
Nc6 {[%clk 0:03:00.2]} 3. Bc4 {[%clk 0:02:57.8]} 3... Bc5 {[%clk 0:02:59.5]} 4.
c3 {[%clk 0:02:57.8]} 4... Nf6 {[%clk 0:02:59.8]} 5. d4 {[%clk 0:02:58.2]} 5...
exd4 {[%clk 0:03:00.7]} 6. e5 {[%clk 0:02:58.3]} 6... d5 {[%clk 0:03:01.2]} 7.
Bb5 {[%clk 0:02:58.4]} 7... Ne4 {[%clk 0:03:01.7]} 8. cxd4 {[%clk 0:02:58.4]}
8... Bb4+ {[%clk 0:03:02.3]} 9. Nbd2 {[%clk 0:02:58.5]} 9... O-O {[%clk
0:03:02]} 10. O-O {[%clk 0:02:58.2]} 10... f6 {[%clk 0:03:02.2]} 11. exf6 {[%clk
0:02:00.6]} 11... Qxf6 {[%clk 0:03:01.8]} 12. Be2 {[%clk 0:01:27.1]} 12... Bd6
{[%clk 0:02:48]} 13. Qb3 {[%clk 0:01:20.5]} 13... Be6 {[%clk 0:02:44.3]} 14.
Qxb7 {[%clk 0:01:14.7]} 14... Nxd4 {[%clk 0:02:42.3]} 15. Nxd4 {[%clk
0:01:09.5]} 15... Qxd4 {[%clk 0:02:39.6]} 16. Nxe4 {[%clk 0:00:56.9]} 16... Qxe4
{[%clk 0:02:40.5]} 17. Qa6 {[%clk 0:00:51.8]} 17... Rae8 {[%clk 0:02:11.9]} 18.
Bd3 {[%clk 0:00:37.1]} 18... Qe5 {[%clk 0:02:02.8]} 19. g3 {[%clk 0:00:35.8]}
19... Bh3 {[%clk 0:02:00.3]} 20. Rd1 {[%clk 0:00:32.1]} 20... Qe1+ {[%clk
0:01:54.4]} 21. Rxe1 {[%clk 0:00:29.9]} 21... Rxe1+ {[%clk 0:01:55.3]} 22. Bf1
{[%clk 0:00:30.3]} 22... Bc5 {[%clk 0:01:44.4]} 23. Be3 {[%clk 0:00:22.4]} 23...
Rxa1 {[%clk 0:01:35.8]} 24. Bxc5 {[%clk 0:00:22.2]} 24... Bxf1 {[%clk 0:01:23]}
25. Qxf1 {[%clk 0:00:13.4]} 25... Rxf1+ {[%clk 0:01:22.3]} 26. Kxf1 {[%clk
0:00:14.3]} 26... Re8 {[%clk 0:01:22.9]} 27. b3 {[%clk 0:00:12.2]} 27... a6
{[%clk 0:01:23.1]} 28. Be3 {[%clk 0:00:11.2]} 28... Kf7 {[%clk 0:01:23.7]} 29.
Kg2 {[%clk 0:00:09.8]} 29... g6 {[%clk 0:01:22.9]} 30. Kf3 {[%clk 0:00:10.1]}
30... Ke6 {[%clk 0:01:23]} 31. Kf4 {[%clk 0:00:09.8]} 31... Rf8+ {[%clk
0:01:21.4]} 32. Kg5 {[%clk 0:00:09.6]} 32... Ke5 {[%clk 0:01:22]} 33. Kh6 {[%clk
0:00:07.7]} 33... d4 {[%clk 0:01:21.8]} 34. f4+ {[%clk 0:00:06.3]} 34... Ke4
{[%clk 0:01:21.6]} 35. Bc1 {[%clk 0:00:06.2]} 35... Rf7 {[%clk 0:01:21.5]} 36.
h3 {[%clk 0:00:03.2]} 36... d3 {[%clk 0:01:21.7]} 37. Kg5 {[%clk 0:00:02.9]}
37... Kf3 {[%clk 0:01:21]} 38. g4 {[%clk 0:00:03.2]} 38... Ke2 {[%clk
0:01:20.4]} 39. f5 {[%clk 0:00:03.1]} 39... gxf5 {[%clk 0:01:21.3]} 40. gxf5
{[%clk 0:00:04]} 40... d2 {[%clk 0:01:21.7]} 41. Bxd2 {[%clk 0:00:04.6]} 41...
Kxd2 {[%clk 0:01:22.6]} 42. f6 {[%clk 0:00:05.3]} 42... Ke3 {[%clk 0:01:23.5]}
43. Kf5 {[%clk 0:00:05.8]} 43... Kd4 {[%clk 0:01:22.9]} 44. Ke6 {[%clk
0:00:05.6]} 44... Rf8 {[%clk 0:01:16.4]} 45. f7 {[%clk 0:00:03.8]} 45... Kc3
{[%clk 0:01:09.9]} 46. Ke7 {[%clk 0:00:04.2]} 46... Ra8 {[%clk 0:01:10.5]} 47.
h4 {[%clk 0:00:03.3]} 47... Kb2 {[%clk 0:00:51]} 48. h5 {[%clk 0:00:03]} 48...
Kxa2 {[%clk 0:00:51.3]} 49. b4 {[%clk 0:00:01.6]} 49... Kb3 {[%clk 0:00:51.6]}
50. f8=Q {[%clk 0:00:01.6]} 50... Rxf8 {[%clk 0:00:51.3]} 51. Kxf8 {[%clk
0:00:02.5]} 51... Kxb4 {[%clk 0:00:52.2]} 52. h6 {[%clk 0:00:03.2]} 52... a5
{[%clk 0:00:52.5]} 53. Kg7 {[%clk 0:00:04.1]} 53... a4 {[%clk 0:00:53.4]} 54.
Kxh7 {[%clk 0:00:05]} 54... a3 {[%clk 0:00:54]} 55. Kg8 {[%clk 0:00:05.5]} 55...
a2 {[%clk 0:00:54.6]} 56. h7 {[%clk 0:00:06.3]} 56... a1=Q {[%clk 0:00:55.2]}
57. h8=Q {[%clk 0:00:07.2]} 57... Qxh8+ {[%clk 0:00:55.8]} 58. Kxh8 {[%clk
0:00:08.1]} 58... c5 {[%clk 0:00:56.7]} 59. Kg7 {[%clk 0:00:09]} 59... c4 {[%clk
0:00:57.6]} 60. Kf6 {[%clk 0:00:09.9]} 60... c3 {[%clk 0:00:58.5]} 61. Ke5
{[%clk 0:00:10.8]} 61... c2 {[%clk 0:00:59.4]} 62. Kd4 {[%clk 0:00:11.7]} 62...
c1=Q {[%clk 0:01:00.3]} 63. Kd3 {[%clk 0:00:12.6]} 63... Qc4+ {[%clk 0:01:01.1]}
64. Kd2 {[%clk 0:00:12.7]} 64... Kc5 {[%clk 0:01:02]} 65. Kd1 {[%clk 0:00:12.8]}
65... Kd4 {[%clk 0:01:02.5]} 66. Ke1 {[%clk 0:00:13.5]} 66... Ke3 {[%clk
0:01:01]} 67. Kd1 {[%clk 0:00:14.4]} 67... Qc5 {[%clk 0:01:01.9]} 0-1

[Event "*** Titled Tuesday Blitz"]
[Site "Chess.com"]
[Date "2021.03.02"]
[Round "8"]
[White "Susal_De_Silva"]
[Black "GLeruste"]
[Result "1-0"]
[WhiteElo "2649"]
[BlackElo "2486"]
[TimeControl "180+1"]
[EndTime "11:30:25 PST"]
[Termination "Susal_De_Silva won by resignation"]

1. e4 {[%clk 0:03:00.9]} 1... e5 {[%clk 0:02:59.6]} 2. Nf3 {[%clk 0:03:01.2]}
2... Nf6 {[%clk 0:03:00.1]} 3. d4 {[%clk 0:03:01]} 3... Nxe4 {[%clk 0:03:00.1]}
4. Bd3 {[%clk 0:03:00.7]} 4... d5 {[%clk 0:02:59.9]} 5. Nxe5 {[%clk 0:03:01]}
5... Bd6 {[%clk 0:03:00.2]} 6. O-O {[%clk 0:03:00.2]} 6... O-O {[%clk
0:03:00.4]} 7. Nc3 {[%clk 0:03:00.3]} 7... Nxc3 {[%clk 0:02:54.2]} 8. bxc3
{[%clk 0:03:01.2]} 8... Bxe5 {[%clk 0:02:54.8]} 9. dxe5 {[%clk 0:03:00.9]} 9...
Nc6 {[%clk 0:02:55]} 10. Re1 {[%clk 0:03:00.5]} 10... Re8 {[%clk 0:02:43.2]} 11.
Bf4 {[%clk 0:02:48.8]} 11... Ne7 {[%clk 0:02:12]} 12. Bg3 {[%clk 0:02:42.1]}
12... Bf5 {[%clk 0:02:05.3]} 13. Qf3 {[%clk 0:02:36.8]} 13... Bxd3 {[%clk
0:02:02.4]} 14. cxd3 {[%clk 0:02:37.7]} 14... Qd7 {[%clk 0:02:02.2]} 15. Rab1
{[%clk 0:02:36.3]} 15... c6 {[%clk 0:02:02.5]} 16. c4 {[%clk 0:02:26.6]} 16...
dxc4 {[%clk 0:01:52.7]} 17. dxc4 {[%clk 0:02:27.5]} 17... Rad8 {[%clk
0:01:52.8]} 18. h4 {[%clk 0:02:23]} 18... b6 {[%clk 0:01:40.7]} 19. Rbd1 {[%clk
0:02:15.2]} 19... Qe6 {[%clk 0:01:37.7]} 20. Qc3 {[%clk 0:01:45]} 20... Nf5
{[%clk 0:01:31.2]} 21. Bf4 {[%clk 0:01:41.9]} 21... c5 {[%clk 0:01:25.5]} 22. g3
{[%clk 0:01:37.1]} 22... Nd4 {[%clk 0:01:22.9]} 23. a4 {[%clk 0:01:07]} 23...
Ne2+ {[%clk 0:01:12.2]} 24. Rxe2 {[%clk 0:01:04.6]} 24... Rxd1+ {[%clk
0:01:12.4]} 25. Kh2 {[%clk 0:01:05.3]} 25... Qc6 {[%clk 0:01:10.8]} 26. f3
{[%clk 0:01:03.3]} 26... Red8 {[%clk 0:01:08]} 27. e6 {[%clk 0:00:58.2]} 27...
fxe6 {[%clk 0:01:05.4]} 28. Qe5 {[%clk 0:00:56.2]} 28... Re8 {[%clk 0:00:47.9]}
29. Bh6 {[%clk 0:00:30.5]} 29... Qd7 {[%clk 0:00:37.8]} 30. Re4 {[%clk
0:00:28.3]} 30... gxh6 {[%clk 0:00:16.7]} 31. Rg4+ {[%clk 0:00:28.4]} 31... Kf8
{[%clk 0:00:17.3]} 32. Qh8+ {[%clk 0:00:24.5]} 32... Ke7 {[%clk 0:00:17.5]} 33.
Rg7+ {[%clk 0:00:24.4]} 33... Kd8 {[%clk 0:00:17.4]} 34. Rxd7+ {[%clk
0:00:24.9]} 34... Rxd7 {[%clk 0:00:18]} 35. Qf6+ {[%clk 0:00:25.1]} 35... Kc8
{[%clk 0:00:17.7]} 36. Qxh6 {[%clk 0:00:25.8]} 36... e5 {[%clk 0:00:16.4]} 37.
Qe3 {[%clk 0:00:25.9]} 37... Rd4 {[%clk 0:00:15.3]} 38. Qh6 {[%clk 0:00:21.3]}
38... Red8 {[%clk 0:00:13.2]} 39. Qc6+ {[%clk 0:00:21.4]} 39... Kb8 {[%clk
0:00:13.7]} 40. Qe6 {[%clk 0:00:20.7]} 40... e4 {[%clk 0:00:13.6]} 41. fxe4
{[%clk 0:00:20.4]} 41... Rd2+ {[%clk 0:00:13.9]} 42. Kh3 {[%clk 0:00:20.5]}
42... R2d6 {[%clk 0:00:14.3]} 43. Qf5 {[%clk 0:00:20.3]} 43... Kb7 {[%clk
0:00:14.9]} 44. e5 {[%clk 0:00:20.5]} 44... Rd1 {[%clk 0:00:14.5]} 45. Qxh7+
{[%clk 0:00:20.7]} 45... R8d7 {[%clk 0:00:14.3]} 46. Qf5 {[%clk 0:00:21.6]}
46... R7d4 {[%clk 0:00:14.2]} 47. e6 {[%clk 0:00:20.7]} 47... Rh1+ {[%clk
0:00:13.8]} 48. Kg2 {[%clk 0:00:21.4]} 48... Rhd1 {[%clk 0:00:13.8]} 49. Qf7+
{[%clk 0:00:21.3]} 49... Ka6 {[%clk 0:00:13.5]} 50. e7 {[%clk 0:00:21.8]} 50...
Re1 {[%clk 0:00:13.2]} 51. e8=Q {[%clk 0:00:21.7]} 51... Rd2+ {[%clk 0:00:13.7]}
52. Kh3 {[%clk 0:00:21.3]} 52... Rh1+ {[%clk 0:00:13.4]} 53. Kg4 {[%clk
0:00:21.7]} 53... Rd4+ {[%clk 0:00:14]} 54. Qf4 {[%clk 0:00:22.3]} 1-0

[Event "*** Titled Tuesday Blitz"]
[Site "Chess.com"]
[Date "2021.03.02"]
[Round "8"]
[White "Chimpinha"]
[Black "KRSilva"]
[Result "0-1"]
[WhiteElo "2387"]
[BlackElo "2235"]
[TimeControl "180+1"]
[EndTime "11:30:26 PST"]
[Termination "KRSilva won on time"]

1. d4 {[%clk 0:03:00.9]} 1... d5 {[%clk 0:02:58.5]} 2. c4 {[%clk 0:03:00.6]}
2... e6 {[%clk 0:02:57.7]} 3. Nc3 {[%clk 0:03:01.1]} 3... c6 {[%clk 0:02:57.5]}
4. e4 {[%clk 0:03:00.6]} 4... dxe4 {[%clk 0:02:50.8]} 5. Nxe4 {[%clk 0:03:00.5]}
5... Nf6 {[%clk 0:02:51.2]} 6. Nxf6+ {[%clk 0:03:00.2]} 6... Qxf6 {[%clk
0:02:52.1]} 7. Nf3 {[%clk 0:03:00.9]} 7... h6 {[%clk 0:02:51.9]} 8. Bd3 {[%clk
0:03:00.3]} 8... Bd6 {[%clk 0:02:44.7]} 9. O-O {[%clk 0:02:59]} 9... O-O {[%clk
0:02:45.1]} 10. Qe2 {[%clk 0:02:53.9]} 10... b6 {[%clk 0:02:44.6]} 11. Qe4
{[%clk 0:02:50]} 11... Rd8 {[%clk 0:02:37.7]} 12. Qh7+ {[%clk 0:02:40]} 12...
Kf8 {[%clk 0:02:37.4]} 13. Re1 {[%clk 0:02:36.8]} 13... Bb7 {[%clk 0:02:35.4]}
14. Bd2 {[%clk 0:02:14.5]} 14... g5 {[%clk 0:02:12.4]} 15. Bc3 {[%clk 0:01:54]}
15... Nd7 {[%clk 0:02:10.7]} 16. Ne5 {[%clk 0:01:41.2]} 16... Bxe5 {[%clk
0:02:03.7]} 17. dxe5 {[%clk 0:01:40.7]} 17... Qg7 {[%clk 0:02:03.6]} 18. Qe4
{[%clk 0:01:26.3]} 18... a5 {[%clk 0:01:51.1]} 19. Bd4 {[%clk 0:01:07.1]} 19...
Rab8 {[%clk 0:01:41.6]} 20. c5 {[%clk 0:00:59.4]} 20... bxc5 {[%clk 0:01:37.3]}
21. Bc3 {[%clk 0:00:58.8]} 21... Ra8 {[%clk 0:01:31.5]} 22. Rad1 {[%clk
0:00:55.4]} 22... Nb6 {[%clk 0:01:26]} 23. Qe3 {[%clk 0:00:48.6]} 23... Kg8
{[%clk 0:01:09]} 24. Qxc5 {[%clk 0:00:44.6]} 24... Na4 {[%clk 0:01:07.5]} 25.
Qa3 {[%clk 0:00:38.9]} 25... Nxc3 {[%clk 0:01:06.6]} 26. Qxc3 {[%clk 0:00:38.9]}
26... Qf8 {[%clk 0:00:54.5]} 27. Be4 {[%clk 0:00:38.4]} 27... Qb4 {[%clk
0:00:49.9]} 28. Qg3 {[%clk 0:00:27.6]} 28... Rxd1 {[%clk 0:00:46.7]} 29. Rxd1
{[%clk 0:00:24.9]} 29... Qxe4 {[%clk 0:00:46.9]} 30. Qb3 {[%clk 0:00:24.4]}
30... Ba6 {[%clk 0:00:39.6]} 31. h3 {[%clk 0:00:25]} 31... Bb5 {[%clk
0:00:37.7]} 32. Qc3 {[%clk 0:00:24.3]} 32... Qe2 {[%clk 0:00:29.1]} 33. Rd7
{[%clk 0:00:21.3]} 33... Qf1+ {[%clk 0:00:25]} 34. Kh2 {[%clk 0:00:20.1]} 34...
Qxf2 {[%clk 0:00:25.1]} 35. Rd2 {[%clk 0:00:13.8]} 35... Qf4+ {[%clk 0:00:24.3]}
36. Kg1 {[%clk 0:00:13.2]} 36... c5 {[%clk 0:00:24.1]} 37. Rf2 {[%clk 0:00:12]}
37... Qd4 {[%clk 0:00:23.4]} 38. Qf3 {[%clk 0:00:12]} 38... Rf8 {[%clk
0:00:18.6]} 39. Qf6 {[%clk 0:00:12.5]} 39... Qh4 {[%clk 0:00:17.1]} 40. Kh2
{[%clk 0:00:11.9]} 40... Qh5 {[%clk 0:00:17]} 41. Rf3 {[%clk 0:00:06.9]} 41...
Qg6 {[%clk 0:00:16.4]} 42. Qe7 {[%clk 0:00:07]} 42... Re8 {[%clk 0:00:16.2]} 0-1

[Event "*** Titled Tuesday Blitz"]
[Site "Chess.com"]
[Date "2021.03.02"]
[Round "8"]
[White "annamaja"]
[Black "maxip32"]
[Result "1-0"]
[WhiteElo "2395"]
[BlackElo "2518"]
[TimeControl "180+1"]
[EndTime "11:30:28 PST"]
[Termination "annamaja won on time"]

1. e4 {[%clk 0:03:00.9]} 1... c5 {[%clk 0:02:59.6]} 2. Nf3 {[%clk 0:03:00.2]}
2... d6 {[%clk 0:03:00.2]} 3. d4 {[%clk 0:02:59.2]} 3... cxd4 {[%clk 0:03:01.1]}
4. Nxd4 {[%clk 0:03:00]} 4... Nf6 {[%clk 0:03:01.4]} 5. Nc3 {[%clk 0:03:00.4]}
5... a6 {[%clk 0:03:01.9]} 6. Be2 {[%clk 0:03:00.7]} 6... e5 {[%clk 0:03:01.5]}
7. Nb3 {[%clk 0:02:59.9]} 7... Be7 {[%clk 0:03:02.4]} 8. O-O {[%clk 0:03:00.1]}
8... O-O {[%clk 0:03:02.2]} 9. Kh1 {[%clk 0:03:00.6]} 9... Nc6 {[%clk 0:02:54]}
10. f4 {[%clk 0:03:00.6]} 10... exf4 {[%clk 0:02:53.5]} 11. Bxf4 {[%clk
0:03:01.5]} 11... Be6 {[%clk 0:02:53.3]} 12. Qe1 {[%clk 0:02:55.3]} 12... Ne8
{[%clk 0:02:52.3]} 13. Qg3 {[%clk 0:02:51.2]} 13... Bf6 {[%clk 0:02:51.8]} 14.
Rad1 {[%clk 0:02:48.3]} 14... Be5 {[%clk 0:02:45.6]} 15. Bxe5 {[%clk 0:02:20.7]}
15... Nxe5 {[%clk 0:02:46.5]} 16. Nd4 {[%clk 0:02:21.3]} 16... Kh8 {[%clk
0:02:06.6]} 17. Nxe6 {[%clk 0:02:14.9]} 17... Qe7 {[%clk 0:01:38.6]} 18. Nxf8
{[%clk 0:02:10.8]} 18... Qxf8 {[%clk 0:01:39.5]} 19. Nd5 {[%clk 0:02:08.4]}
19... Rc8 {[%clk 0:01:36.8]} 20. c3 {[%clk 0:02:01.1]} 20... Nc7 {[%clk
0:01:20.6]} 21. Nxc7 {[%clk 0:01:51.1]} 21... Rxc7 {[%clk 0:01:21.5]} 22. Rd5
{[%clk 0:01:50.1]} 22... Qe7 {[%clk 0:01:13.3]} 23. Rfd1 {[%clk 0:01:47.1]}
23... Rc6 {[%clk 0:01:11.1]} 24. h3 {[%clk 0:01:23.4]} 24... g6 {[%clk
0:01:09.3]} 25. c4 {[%clk 0:01:12.4]} 25... f6 {[%clk 0:01:04]} 26. b3 {[%clk
0:00:52.3]} 26... b6 {[%clk 0:01:00.9]} 27. Rf1 {[%clk 0:00:50.5]} 27... Kg7
{[%clk 0:01:00.2]} 28. Rf4 {[%clk 0:00:42.6]} 28... a5 {[%clk 0:00:57.4]} 29.
Rd1 {[%clk 0:00:41.7]} 29... b5 {[%clk 0:00:33.1]} 30. cxb5 {[%clk 0:00:35.3]}
30... Rc2 {[%clk 0:00:32.5]} 31. Bc4 {[%clk 0:00:32.6]} 31... Rxa2 {[%clk
0:00:27]} 32. Rf2 {[%clk 0:00:32]} 32... Ra3 {[%clk 0:00:23.7]} 33. Qc3 {[%clk
0:00:27.2]} 33... Qc7 {[%clk 0:00:15.9]} 34. Qb2 {[%clk 0:00:19.2]} 34... Qc5
{[%clk 0:00:15.2]} 35. Rfd2 {[%clk 0:00:17]} 35... Qb4 {[%clk 0:00:15]} 36. Qc2
{[%clk 0:00:11.6]} 36... a4 {[%clk 0:00:11.2]} 37. Rxd6 {[%clk 0:00:10.9]} 37...
axb3 {[%clk 0:00:11]} 38. Qd2 {[%clk 0:00:06]} 38... Qxc4 {[%clk 0:00:10.3]} 39.
b6 {[%clk 0:00:06.4]} 39... Ra2 {[%clk 0:00:08.3]} 40. Qd4 {[%clk 0:00:05.8]}
40... Qb5 {[%clk 0:00:07.8]} 41. Qd5 {[%clk 0:00:04.9]} 41... Ra8 {[%clk
0:00:06.5]} 42. Qxb5 {[%clk 0:00:04.5]} 42... Ra3 {[%clk 0:00:03.5]} 43. b7
{[%clk 0:00:04.2]} 43... b2 {[%clk 0:00:03.6]} 44. b8=Q {[%clk 0:00:04.5]} 44...
Kh6 {[%clk 0:00:03.8]} 45. Qxb2 {[%clk 0:00:04.9]} 45... Re3 {[%clk 0:00:03.5]}
46. Qf8+ {[%clk 0:00:05.4]} 46... Kg5 {[%clk 0:00:03.5]} 47. Qxf6+ {[%clk
0:00:06.2]} 47... Kh5 {[%clk 0:00:02.7]} 48. Qbf2 {[%clk 0:00:06.7]} 1-0

[Event "*** Titled Tuesday Blitz"]
[Site "Chess.com"]
[Date "2021.03.02"]
[Round "8"]
[White "MITerryble"]
[Black "Vugar_Manafov"]
[Result "1/2-1/2"]
[WhiteElo "2901"]
[BlackElo "2638"]
[TimeControl "180+1"]
[EndTime "11:30:29 PST"]
[Termination "Game drawn by repetition"]

1. e4 {[%clk 0:03:00.9]} 1... Nf6 {[%clk 0:02:57.8]} 2. e5 {[%clk 0:03:00.8]}
2... Nd5 {[%clk 0:02:56]} 3. c4 {[%clk 0:03:00.9]} 3... Nb6 {[%clk 0:02:55.8]}
4. d4 {[%clk 0:03:00.9]} 4... d6 {[%clk 0:02:54.9]} 5. exd6 {[%clk 0:03:01.8]}
5... cxd6 {[%clk 0:02:55.4]} 6. Nc3 {[%clk 0:03:02]} 6... g6 {[%clk 0:02:54.5]}
7. Be3 {[%clk 0:03:02]} 7... Bg7 {[%clk 0:02:53]} 8. Rc1 {[%clk 0:03:02]} 8...
O-O {[%clk 0:02:53.1]} 9. b3 {[%clk 0:03:02]} 9... Bf5 {[%clk 0:02:50.9]} 10. d5
{[%clk 0:03:01.6]} 10... e6 {[%clk 0:02:37.2]} 11. g4 {[%clk 0:02:50.4]} 11...
Bxc3+ {[%clk 0:02:36.2]} 12. Rxc3 {[%clk 0:02:50]} 12... Be4 {[%clk 0:02:35.4]}
13. f3 {[%clk 0:02:50.1]} 13... Bxd5 {[%clk 0:02:34.1]} 14. cxd5 {[%clk
0:02:27.7]} 14... Nxd5 {[%clk 0:02:35]} 15. Rd3 {[%clk 0:02:27.8]} 15... Nxe3
{[%clk 0:02:34.3]} 16. Rxe3 {[%clk 0:02:27.4]} 16... Qh4+ {[%clk 0:02:34.4]} 17.
Kd2 {[%clk 0:02:07.3]} 17... Nc6 {[%clk 0:02:23.4]} 18. Bd3 {[%clk 0:01:59.4]}
18... Rfc8 {[%clk 0:02:21]} 19. Ne2 {[%clk 0:01:49.4]} 19... Nb4 {[%clk
0:02:09]} 20. Be4 {[%clk 0:01:37.2]} 20... d5 {[%clk 0:01:51.7]} 21. Bb1 {[%clk
0:01:36.9]} 21... Rc5 {[%clk 0:01:49.6]} 22. a3 {[%clk 0:01:31.2]} 22... Na6
{[%clk 0:01:48.7]} 23. b4 {[%clk 0:01:22.3]} 23... Rc7 {[%clk 0:01:47.5]} 24.
Bd3 {[%clk 0:01:01.1]} 24... Rac8 {[%clk 0:01:41.9]} 25. Qa1 {[%clk 0:01:00.6]}
25... Nb8 {[%clk 0:01:34.4]} 26. Nd4 {[%clk 0:00:54.1]} 26... Nd7 {[%clk
0:01:25.3]} 27. Nb5 {[%clk 0:00:51]} 27... Qf2+ {[%clk 0:00:58.8]} 28. Re2
{[%clk 0:00:48.2]} 28... Rc2+ {[%clk 0:00:58.1]} 29. Bxc2 {[%clk 0:00:44.1]}
29... Rxc2+ {[%clk 0:00:59]} 30. Kxc2 {[%clk 0:00:45]} 30... Qxe2+ {[%clk
0:00:58.9]} 31. Kb3 {[%clk 0:00:43.1]} 31... Qc4+ {[%clk 0:00:50.3]} 32. Kb2
{[%clk 0:00:43.1]} 32... Qxb5 {[%clk 0:00:50.4]} 33. Qf1 {[%clk 0:00:41.7]}
33... Qb6 {[%clk 0:00:49.8]} 34. Qg1 {[%clk 0:00:37]} 34... Qa6 {[%clk
0:00:44.3]} 35. Qf1 {[%clk 0:00:33.8]} 35... Qd6 {[%clk 0:00:41.3]} 36. Qd3
{[%clk 0:00:29.2]} 36... Ne5 {[%clk 0:00:40.2]} 37. Qc3 {[%clk 0:00:26.1]} 37...
Nc4+ {[%clk 0:00:34.7]} 38. Ka2 {[%clk 0:00:25.8]} 38... b5 {[%clk 0:00:33.4]}
39. h4 {[%clk 0:00:12.5]} 39... Qg3 {[%clk 0:00:26.5]} 40. Rc1 {[%clk
0:00:08.3]} 40... Qxh4 {[%clk 0:00:25.1]} 41. Rc2 {[%clk 0:00:07.9]} 41... a6
{[%clk 0:00:21.6]} 42. Qd4 {[%clk 0:00:07.6]} 42... Qg3 {[%clk 0:00:20.9]} 43.
Qf6 {[%clk 0:00:06.9]} 43... Qe1 {[%clk 0:00:17.9]} 44. g5 {[%clk 0:00:06.4]}
44... Qe3 {[%clk 0:00:15.6]} 45. Qd8+ {[%clk 0:00:05.5]} 45... Kg7 {[%clk
0:00:16]} 46. Qf6+ {[%clk 0:00:06.4]} 46... Kg8 {[%clk 0:00:16.5]} 47. Qd8+
{[%clk 0:00:04.5]} 47... Kg7 {[%clk 0:00:17]} 48. Qf6+ {[%clk 0:00:05.4]} 48...
Kg8 {[%clk 0:00:17.6]} 1/2-1/2

[Event "*** Titled Tuesday Blitz"]
[Site "Chess.com"]
[Date "2021.03.02"]
[Round "8"]
[White "Iskusnyh"]
[Black "German_Bazeev"]
[Result "0-1"]
[WhiteElo "2606"]
[BlackElo "2742"]
[TimeControl "180+1"]
[EndTime "11:30:30 PST"]
[Termination "German_Bazeev won on time"]

1. d4 {[%clk 0:03:00.9]} 1... Nf6 {[%clk 0:02:58.3]} 2. c4 {[%clk 0:03:01.2]}
2... e6 {[%clk 0:02:57.5]} 3. g3 {[%clk 0:03:01.5]} 3... d5 {[%clk 0:02:57.5]}
4. Nf3 {[%clk 0:03:00.5]} 4... Bb4+ {[%clk 0:02:57.8]} 5. Bd2 {[%clk 0:03:00.1]}
5... Be7 {[%clk 0:02:58.5]} 6. Bg2 {[%clk 0:02:59.7]} 6... O-O {[%clk
0:02:59.1]} 7. O-O {[%clk 0:03:00.2]} 7... c6 {[%clk 0:02:59.8]} 8. Qc2 {[%clk
0:03:00.1]} 8... a5 {[%clk 0:03:00.4]} 9. Bg5 {[%clk 0:02:52.2]} 9... Nbd7
{[%clk 0:02:57]} 10. Nbd2 {[%clk 0:02:48.4]} 10... b6 {[%clk 0:02:56]} 11. e4
{[%clk 0:02:39.4]} 11... Ba6 {[%clk 0:02:51.7]} 12. e5 {[%clk 0:02:31.6]} 12...
Ne8 {[%clk 0:02:50.1]} 13. Bxe7 {[%clk 0:02:30.9]} 13... Qxe7 {[%clk 0:02:51]}
14. cxd5 {[%clk 0:02:30.6]} 14... cxd5 {[%clk 0:02:49]} 15. Rfc1 {[%clk
0:02:29.8]} 15... Rc8 {[%clk 0:02:45.2]} 16. Qb3 {[%clk 0:02:25.9]} 16... Nc7
{[%clk 0:02:36.7]} 17. Bf1 {[%clk 0:02:19.2]} 17... Bxf1 {[%clk 0:02:23.4]} 18.
Nxf1 {[%clk 0:02:18.5]} 18... b5 {[%clk 0:02:17.5]} 19. Rc6 {[%clk 0:02:04.9]}
19... Nb8 {[%clk 0:02:08.8]} 20. Rc2 {[%clk 0:01:52.4]} 20... a4 {[%clk
0:02:07.5]} 21. Qd3 {[%clk 0:01:44.5]} 21... Nba6 {[%clk 0:01:32.2]} 22. a3
{[%clk 0:01:36.5]} 22... Rb8 {[%clk 0:01:32.5]} 23. Rc6 {[%clk 0:01:22]} 23...
b4 {[%clk 0:01:15.9]} 24. Rxa6 {[%clk 0:01:18.2]} 24... Nxa6 {[%clk 0:01:16.8]}
25. Qxa6 {[%clk 0:01:18.3]} 25... Ra8 {[%clk 0:01:17.6]} 26. Qd3 {[%clk
0:01:14.1]} 26... Rfc8 {[%clk 0:01:17.4]} 27. Ne3 {[%clk 0:01:09.3]} 27... b3
{[%clk 0:01:06]} 28. Qd2 {[%clk 0:01:01.9]} 28... Rc7 {[%clk 0:01:02.1]} 29. Rc1
{[%clk 0:01:00.2]} 29... Rac8 {[%clk 0:01:02.7]} 30. Rxc7 {[%clk 0:00:59.6]}
30... Qxc7 {[%clk 0:01:03.6]} 31. Kg2 {[%clk 0:00:25]} 31... Qc1 {[%clk
0:01:02.2]} 32. Qe2 {[%clk 0:00:23.9]} 32... h6 {[%clk 0:00:53.1]} 33. h4 {[%clk
0:00:24.1]} 33... Qb1 {[%clk 0:00:43.1]} 34. g4 {[%clk 0:00:23.6]} 34... Rc2
{[%clk 0:00:41.1]} 35. Qb5 {[%clk 0:00:21.3]} 35... Rxb2 {[%clk 0:00:33]} 36.
Qe8+ {[%clk 0:00:21.1]} 36... Kh7 {[%clk 0:00:33.2]} 37. Qxf7 {[%clk 0:00:21.4]}
37... Qe4 {[%clk 0:00:27.6]} 38. g5 {[%clk 0:00:20.4]} 38... Ra2 {[%clk
0:00:04.9]} 39. Kg3 {[%clk 0:00:18.1]} 39... Qg6 {[%clk 0:00:03.4]} 40. Qb7
{[%clk 0:00:17.1]} 40... h5 {[%clk 0:00:03.9]} 41. Ng2 {[%clk 0:00:16.3]} 41...
Qf5 {[%clk 0:00:03.6]} 42. Nf4 {[%clk 0:00:16.2]} 42... Qg4+ {[%clk 0:00:04]}
43. Kh2 {[%clk 0:00:15.1]} 43... Qxf4+ {[%clk 0:00:04.9]} 44. Kg2 {[%clk
0:00:14.1]} 44... Qg4+ {[%clk 0:00:05.4]} 45. Kh2 {[%clk 0:00:14.5]} 45... Qxf3
{[%clk 0:00:06]} 46. g6+ {[%clk 0:00:14.9]} 46... Kxg6 {[%clk 0:00:06.1]} 0-1